bitfinex/quotes_BTCUSD_20240101
["timestamp","ask_amount","ask_price","bid_price","bid_amount"]
[1704087360458,1.19341967,42349.0,42348.0,0.03071]
[1704087362571,1.17145967,42349.0,42348.0,0.03071]
[1704087362780,0.95333967,42349.0,42348.0,0.03071]
[1704087363417,1.15333967,42349.0,42348.0,0.03071]
[1704087366527,1.18897967,42349.0,42348.0,0.03071]
[1704087368432,1.24548538,42349.0,42348.0,0.03071]
[1704087368862,1.18897967,42349.0,42348.0,0.03071]
[1704087369295,1.50957109,42349.0,42348.0,0.03071]
[1704087369526,1.50941157,42349.0,42348.0,0.03071]
[1704087369742,1.60269613,42349.0,42348.0,0.03071]
[1704087370373,1.64111079,42349.0,42348.0,0.03071]
[1704087370583,1.82284652,42349.0,42348.0,0.03071]
[1704087371219,1.81384652,42349.0,42348.0,0.02971]
[1704087371434,1.81384652,42349.0,42348.0,0.02871]
[1704087371435,1.80384652,42349.0,42348.0,0.02871]
[1704087371638,1.82184652,42349.0,42348.0,0.03071]
[1704087372201,1.84182652,42349.0,42348.0,0.02871]
[1704087372618,1.76653967,42349.0,42348.0,0.03071]
[1704087372838,1.85982652,42349.0,42348.0,0.03071]
[1704087373053,1.78453967,42349.0,42348.0,0.03271]
[1704087373537,1.76653967,42349.0,42348.0,0.03071]
[1704087373762,1.78453967,42349.0,42348.0,0.03271]
[1704087375518,2.25680567,42349.0,42348.0,0.03271]
[1704087378917,2.4263228,42349.0,42348.0,0.03271]
[1704087379156,2.25680567,42349.0,42348.0,0.03271]
[1704087380115,1.31227367,42349.0,42348.0,0.03271]
[1704087380381,1.78453967,42349.0,42348.0,0.03271]
[1704087380649,2.25680567,42349.0,42348.0,0.03271]
[1704087384222,2.25400079,42349.0,42348.0,0.03271]
[1704087384495,2.38152867,42349.0,42348.0,0.03271]
[1704087384788,2.21201154,42349.0,42348.0,0.03271]
[1704087386402,2.20201154,42349.0,42348.0,0.03271]
[1704087386656,2.21201154,42349.0,42348.0,0.03271]
[1704087390680,2.63887721,42349.0,42348.0,0.03271]
[1704087390907,2.4723226,42349.0,42348.0,0.03271]
[1704087391400,2.9445886,42349.0,42348.0,0.03271]
[1704087392021,3.08637221,42349.0,42348.0,0.03271]
[1704087392471,2.9445886,42349.0,42348.0,0.03271]
[1704087393297,0.31,42348.0,42347.0,0.02871]
[1704087393544,2.33889111,42348.0,42347.0,0.02871]
[1704087393764,2.34353536,42348.0,42347.0,0.02871]
[1704087393967,0.31,42347.0,42346.0,0.02871]
[1704087394198,0.86621711,42347.0,42346.0,0.02871]
[1704087394427,2.31949767,42347.0,42346.0,0.02871]
[1704087394663,2.51515661,42347.0,42346.0,0.02871]
[1704087395358,2.53115661,42347.0,42346.0,0.02971]
[1704087395587,2.71743004,42347.0,42346.0,0.03171]
[1704087396263,2.88706211,42347.0,42346.0,0.03171]
[1704087396471,2.71778868,42347.0,42346.0,0.03171]
[1704087396680,2.7174302,42347.0,42346.0,0.03171]
[1704087396891,2.54815661,42347.0,42346.0,0.03171]
[1704087397759,2.69539554,42347.0,42346.0,0.03171]
[1704087398616,2.86465181,42347.0,42346.0,0.03171]
[1704087399059,2.54815661,42347.0,42346.0,0.03171]
[1704087399700,2.20256149,42347.0,42346.0,0.03171]
[1704087400141,2.37175063,42347.0,42346.0,0.03171]
[1704087400352,2.20256149,42347.0,42346.0,0.03171]
[1704087400549,2.68042114,42347.0,42346.0,0.03171]
[1704087400763,2.84962507,42347.0,42346.0,0.03171]
[1704087400973,2.68042114,42347.0,42346.0,0.03171]
[1704087401184,3.02044461,42347.0,42346.0,0.03171]
[1704087403149,1.60358061,42347.0,42346.0,0.03171]
[1704087403372,2.82478567,42347.0,42346.0,0.03171]
[1704087403574,3.01986027,42347.0,42346.0,0.03171]
[1704087403792,2.85364325,42347.0,42346.0,0.03171]
[1704087404014,1.25462,42345.0,42341.0,0.008]
[1704087404224,2.2395172,42345.0,42341.0,0.008]
[1704087404430,2.88110778,42345.0,42341.0,0.008]
[1704087404842,2.7118272,42345.0,42341.0,0.008]
[1704087405060,2.2395172,42345.0,42341.0,0.008]
[1704087405296,2.2535172,42345.0,42344.0,0.02971]
[1704087405511,2.1252772,42345.0,42344.0,0.03071]
[1704087405953,2.2650172,42345.0,42344.0,0.03071]
[1704087406829,2.27398545,42345.0,42344.0,0.03071]
[1704087407460,2.44323008,42345.0,42344.0,0.03071]
[1704087407678,2.27398545,42345.0,42344.0,0.03071]
[1704087407893,2.41210545,42345.0,42344.0,0.03071]
[1704087408100,2.58135008,42345.0,42344.0,0.03071]
[1704087408302,2.44323008,42345.0,42344.0,0.03071]
[1704087411421,2.42002545,42345.0,42344.0,0.03071]
[1704087411845,2.27398545,42345.0,42344.0,0.03071]
[1704087412018,2.44328202,42345.0,42344.0,0.03071]
[1704087412999,2.27398545,42345.0,42344.0,0.03071]
[1704087414074,2.74629545,42345.0,42344.0,0.03071]
[1704087414286,2.7441672,42345.0,42344.0,0.03071]
[1704087414711,0.572433,42334.0,42323.0,0.47538]
[1704087414939,0.472444,42333.0,42323.0,0.47538]
[1704087415158,0.54701554,42333.0,42324.0,0.661074]
[1704087415390,0.06372,42332.0,42324.0,0.661074]
[1704087415998,0.00491154,42331.0,42324.0,0.661074]
[1704087416411,0.05478,42330.0,42324.0,0.661074]
[1704087416886,0.0049493,42329.0,42324.0,0.661074]
[1704087417730,0.002,42331.0,42324.0,0.661074]
[1704087417939,0.00494085,42328.0,42324.0,0.663074]
[1704087418146,0.06312,42332.0,42324.0,0.664074]
[1704087418347,0.00463295,42327.0,42324.0,0.478374]
[1704087418556,0.06312,42332.0,42324.0,0.478374]
[1704087418768,0.00463295,42326.0,42324.0,0.476374]
[1704087418959,0.06312,42332.0,42324.0,0.476374]
[1704087419206,0.06312,42332.0,42324.0,0.479374]
[1704087419414,0.1,42330.0,42324.0,0.00683]
[1704087419596,0.572483,42330.0,42324.0,0.00683]
[1704087419745,0.0572065,42329.0,42324.0,0.00583]
[1704087420560,0.0049465,42329.0,42324.0,0.475372]
[1704087420972,0.001,42329.0,42324.0,0.475372]
[1704087421185,0.001,42329.0,42323.0,0.1807]
[1704087421186,0.00529023,42328.0,42326.0,0.00283]
[1704087421534,0.001,42329.0,42326.0,0.00283]
[1704087422164,0.00569193,42328.0,42326.0,0.00283]
[1704087422366,0.001,42329.0,42326.0,0.00283]
[1704087422583,0.001,42329.0,42326.0,0.00483]
[1704087422786,0.00528939,42328.0,42326.0,0.00483]
[1704087423202,0.05088,42334.0,42326.0,0.00583]
[1704087423623,0.00532664,42333.0,42326.0,0.19523]
[1704087423872,0.00532664,42333.0,42326.0,0.19323]
[1704087424054,0.001,42328.0,42326.0,0.20023]
[1704087424225,0.001,42328.0,42326.0,0.1924]
[1704087424441,0.05088,42334.0,42325.0,0.472528]
[1704087424641,0.002,42333.0,42325.0,0.472528]
[1704087424841,0.00732664,42333.0,42325.0,0.472528]
[1704087425249,0.001,42328.0,42326.0,0.006]
[1704087425653,0.002,42333.0,42325.0,0.472528]
[1704087425850,0.04614,42334.0,42325.0,0.472528]
[1704087426053,0.001,42328.0,42326.0,0.002]
[1704087426695,0.04614,42334.0,42324.0,0.19323]
[1704087426808,0.522574,42334.0,42325.0,0.472527]
[1704087427010,0.001,42333.0,42325.0,0.472527]
[1704087427217,0.00534066,42333.0,42326.0,0.04719]
[1704087427639,0.002,42328.0,42326.0,0.05519]
[1704087427844,0.001,42328.0,42326.0,0.04919]
[1704087428084,0.00534066,42327.0,42326.0,0.04919]
[1704087428291,0.001,42328.0,42326.0,0.04919]
[1704087428712,0.001,42328.0,42326.0,0.05319]
[1704087428713,0.00533148,42327.0,42326.0,0.05319]
[1704087430083,0.00633148,42327.0,42326.0,0.05519]
[1704087430302,0.00633148,42327.0,42326.0,0.04919]
[1704087430714,0.00733148,42327.0,42326.0,0.05719]
[1704087432580,0.06013148,42327.0,42326.0,0.05719]
[1704087432986,0.00733148,42327.0,42326.0,0.05719]
[1704087459969,0.06061148,42327.0,42326.0,0.05719]
[1704087461013,0.00733148,42327.0,42326.0,0.05719]
[1704087463379,0.07039148,42327.0,42326.0,0.05719]
[1704087464728,0.06939148,42327.0,42326.0,0.05519]
[1704087464923,0.07039148,42327.0,42326.0,0.05519]
[1704087465171,0.06939148,42327.0,42326.0,0.04719]
[1704087465414,0.06839148,42327.0,42326.0,0.04719]
[1704087465662,1.31873457,42327.0,42326.0,0.04719]
[1704087465882,1.50448482,42327.0,42326.0,0.04719]
[1704087466103,0.1,42324.0,42322.0,0.04735]
[1704087466313,0.78527539,42323.0,42322.0,0.04735]
[1704087466520,0.98805311,42323.0,42322.0,0.04735]
[1704087466776,0.99329216,42323.0,42322.0,0.04735]
[1704087466999,0.79329216,42323.0,42322.0,0.04735]
[1704087467222,0.99329216,42323.0,42322.0,0.04735]
[1704087467423,0.79329216,42323.0,42322.0,0.04735]
[1704087467858,0.54207505,42323.0,42322.0,0.04735]
[1704087468474,0.54207505,42323.0,42322.0,0.04835]
[1704087468475,0.54807505,42323.0,42322.0,0.04835]
[1704087468862,0.54207505,42323.0,42322.0,0.04735]
[1704087469114,0.54607505,42323.0,42322.0,0.04835]
[1704087469325,0.01423905,42323.0,42322.0,0.04835]
[1704087473625,0.01423905,42323.0,42322.0,0.520917]
[1704087473626,0.009,42323.0,42322.0,0.520917]
[1704087474322,0.004,42323.0,42322.0,0.520917]
[1704087474507,0.005,42323.0,42322.0,0.522917]
[1704087474966,0.001,42323.0,42322.0,0.521917]
[1704087475172,0.002,42323.0,42322.0,0.526917]
[1704087475382,0.001,42323.0,42322.0,0.521917]
[1704087475807,0.001,42323.0,42322.0,0.528917]
[1704087476015,0.001,42323.0,42322.0,0.521917]
[1704087476441,0.002,42323.0,42322.0,0.530917]
[1704087477074,0.001,42323.0,42322.0,0.528917]
[1704087477284,0.002,42323.0,42322.0,0.530917]
[1704087477506,0.001,42323.0,42322.0,0.521917]
[1704087477722,0.001,42323.0,42322.0,0.527917]
[1704087477723,0.002,42323.0,42322.0,0.527917]
[1704087477965,0.001,42323.0,42322.0,0.521917]
[1704087478377,0.002,42323.0,42322.0,0.530917]
[1704087478601,0.001,42323.0,42322.0,0.521917]
[1704087478800,0.04872,42329.0,42322.0,0.519917]
[1704087479018,0.00628603,42323.0,42322.0,0.525917]
[1704087479262,0.001,42323.0,42322.0,0.04935]
[1704087479463,0.001,42323.0,42322.0,0.05335]
[1704087479896,0.001,42323.0,42322.0,0.05535]
[1704087479897,0.002,42323.0,42322.0,0.05535]
[1704087480104,0.00769962,42323.0,42322.0,0.05535]
[1704087480305,0.002,42323.0,42322.0,0.05535]
[1704087480544,0.00772996,42323.0,42322.0,0.05535]
[1704087480770,0.001,42323.0,42322.0,0.04935]
[1704087481197,0.00628899,42323.0,42322.0,0.04935]
[1704087481553,0.00728899,42323.0,42322.0,0.05535]
[1704087499187,0.002,42323.0,42322.0,0.05535]
[1704087505913,0.002,42323.0,42322.0,0.76113411]
[1704087506123,0.002,42323.0,42322.0,1.01979411]
[1704087508062,0.002,42323.0,42322.0,1.0764049]
[1704087508918,0.001,42323.0,42322.0,1.0744049]
[1704087509132,0.001,42323.0,42322.0,1.0257449]
[1704087509339,0.002,42323.0,42322.0,1.2134449]
[1704087509546,0.004,42323.0,42322.0,1.2314449]
[1704087509971,0.004,42323.0,42322.0,0.98713411]
[1704087510379,0.002,42323.0,42322.0,0.96913411]
[1704087510580,0.2128,42333.0,42325.0,0.04719]
[1704087510785,0.2128,42333.0,42327.0,0.04719]
[1704087511846,0.2138,42333.0,42327.0,0.04719]
[1704087512318,0.2128,42333.0,42327.0,0.04719]
[1704087512505,0.2138,42333.0,42327.0,0.04719]
[1704087519262,0.00509006,42332.0,42327.0,0.04719]
[1704087521696,0.00509006,42332.0,42327.0,0.04819]
[1704087535384,0.00509006,42332.0,42329.0,0.04719]
[1704087535583,0.2128,42333.0,42329.0,0.04719]
[1704087536411,0.00605612,42332.0,42329.0,0.04719]
[1704087537945,0.00605612,42332.0,42329.0,0.04819]
[1704087538380,0.2128,42333.0,42329.0,0.04819]
[1704087538575,0.00512561,42332.0,42329.0,0.04819]
[1704087539785,0.05072561,42332.0,42329.0,0.001]
[1704087540024,0.00512561,42332.0,42329.0,0.001]
[1704087540481,0.00512561,42332.0,42328.0,0.04719]
[1704087540732,0.00512561,42332.0,42329.0,0.04719]
[1704087541417,0.00812561,42332.0,42329.0,0.04719]
[1704087541866,0.01212561,42332.0,42329.0,0.001]
[1704087542550,0.00812561,42332.0,42325.0,0.04719]
[1704087542841,0.00812561,42332.0,42327.0,0.04719]
[1704087543070,0.01212561,42332.0,42329.0,0.001]
[1704087543533,0.20860981,42332.0,42329.0,0.001]
[1704087543750,0.04884,42331.0,42329.0,0.001]
[1704087544134,0.00510633,42330.0,42329.0,0.001]
[1704087544424,0.00510633,42330.0,42328.0,0.04719]
[1704087544848,0.00510633,42330.0,42325.0,0.04819]
[1704087545062,0.732409,42329.0,42325.0,0.04819]
[1704087545272,0.25992,42329.0,42325.0,0.04719]
[1704087545480,0.07224,42328.0,42325.0,0.04719]
[1704087545688,0.07728916,42328.0,42325.0,0.04719]
[1704087545897,0.07728916,42328.0,42322.0,0.04735]
[1704087546309,0.0555,42327.0,42322.0,0.04735]
[1704087546529,0.06058619,42327.0,42322.0,0.04735]
[1704087546735,0.669022,42326.0,42322.0,0.04735]
[1704087547143,0.718942,42326.0,42322.0,0.04735]
[1704087547352,0.00508619,42325.0,42322.0,0.04735]
[1704087548448,0.00508619,42325.0,42322.0,0.04835]
[1704087549198,0.00908619,42325.0,42322.0,0.04835]
[1704087549618,0.00908619,42325.0,42322.0,0.04735]
[1704087549825,0.01208619,42325.0,42322.0,0.04735]
[1704087556958,0.21268177,42324.0,42322.0,0.04735]
[1704087557111,0.68523077,42324.0,42322.0,0.04735]
[1704087557312,0.06248983,42323.0,42322.0,0.04735]
[1704087559017,0.06348983,42323.0,42322.0,0.04735]
[1704087559237,0.00678983,42323.0,42322.0,0.04735]
[1704087561340,0.05352983,42323.0,42322.0,0.04735]
[1704087564264,0.00678983,42323.0,42322.0,0.04735]
[1704087564954,0.05352983,42323.0,42322.0,0.04735]
[1704087565185,0.00678983,42323.0,42322.0,0.04735]
[1704087568645,0.1387994,42323.0,42322.0,0.04735]
[1704087568860,0.1885394,42323.0,42322.0,0.04735]
[1704087571738,0.00678983,42323.0,42322.0,0.04735]
[1704087574674,0.001,42323.0,42322.0,0.04735]
[1704087574877,0.00673325,42323.0,42322.0,0.04735]
[1704087575111,0.001,42323.0,42322.0,0.04735]
[1704087575318,0.00673325,42323.0,42322.0,0.04735]
[1704087575519,0.001,42323.0,42322.0,0.04735]
[1704087575963,0.00668074,42323.0,42322.0,0.04735]
[1704087584504,0.05600074,42323.0,42322.0,0.04735]
[1704087587015,0.00668074,42323.0,42322.0,0.04735]
[1704087588442,0.05426074,42323.0,42322.0,0.04735]
[1704087588650,0.00668074,42323.0,42322.0,0.04735]
[1704087589261,0.05396074,42323.0,42322.0,0.04735]
[1704087589443,0.00668074,42323.0,42322.0,0.04735]
[1704087590076,0.05486074,42323.0,42322.0,0.04735]
[1704087591019,0.00668074,42323.0,42322.0,0.04735]
[1704087591440,0.05234074,42323.0,42322.0,0.04735]
[1704087592851,0.00668074,42323.0,42322.0,0.04735]
[1704087600059,0.05450074,42323.0,42322.0,0.04735]
[1704087601122,0.00668074,42323.0,42322.0,0.04735]
[1704087602611,0.05810074,42323.0,42322.0,0.04735]
[1704087603929,0.00668074,42323.0,42322.0,0.04735]
[1704087608614,0.05234074,42323.0,42322.0,0.04735]
[1704087611877,0.71714888,42323.0,42322.0,0.04735]
[1704087612082,0.74282888,42323.0,42322.0,0.04735]
[1704087612494,0.77108003,42323.0,42322.0,0.04735]
[1704087613259,0.29852403,42323.0,42322.0,0.04735]
[1704087613440,0.77108003,42323.0,42322.0,0.04735]
[1704087613683,0.74282091,42323.0,42322.0,0.04735]
[1704087614266,0.6863266,42323.0,42322.0,0.04735]
[1704087614516,0.74281734,42323.0,42322.0,0.04735]
[1704087615138,0.27026134,42323.0,42322.0,0.04735]
[1704087615334,0.74281734,42323.0,42322.0,0.04735]
[1704087618596,0.27026134,42323.0,42322.0,0.04735]
[1704087618821,0.6863266,42323.0,42322.0,0.04735]
[1704087619661,0.55057674,42323.0,42322.0,0.04735]
[1704087619898,0.53305674,42323.0,42322.0,0.04735]
[1704087620530,0.47923674,42323.0,42322.0,0.04735]
[1704087620944,0.52483674,42323.0,42322.0,0.04735]
[1704087621148,0.47923674,42323.0,42322.0,0.04735]
[1704087621360,0.00668074,42323.0,42322.0,0.04735]
[1704087624474,0.00568074,42323.0,42322.0,0.04735]
[1704087624689,0.001,42323.0,42322.0,0.04735]
[1704087624895,0.001,42323.0,42322.0,0.519915]
[1704087625099,0.05650195,42332.0,42322.0,0.519915]
[1704087625305,0.00573724,42323.0,42322.0,0.519915]
[1704087625514,0.001,42323.0,42322.0,0.04735]
[1704087625724,0.001,42323.0,42322.0,0.05035]
[1704087625931,0.04566,42332.0,42322.0,0.05035]
[1704087626137,0.21779688,42333.0,42322.0,0.04735]
[1704087626345,0.00575385,42331.0,42322.0,0.04735]
[1704087626554,0.05116,42332.0,42322.0,0.04735]
[1704087626751,0.20155385,42330.0,42322.0,0.04735]
[1704087626965,0.1958,42330.0,42322.0,0.04735]
[1704087627175,0.0057227,42329.0,42322.0,0.04735]
[1704087628614,0.0057227,42329.0,42322.0,0.04835]
[1704087629645,0.0057227,42329.0,42322.0,0.05035]
[1704087635859,0.1415227,42330.0,42322.0,0.05035]
[1704087636067,0.00511949,42328.0,42322.0,0.05035]
[1704087636277,0.00511949,42328.0,42322.0,0.75613311]
[1704087636481,0.472467,42331.0,42322.0,0.75613311]
[1704087636698,0.472436,42334.0,42326.0,0.04719]
[1704087636905,0.15106895,42338.0,42326.0,0.75292411]
[1704087636906,0.094567,42338.0,42326.0,0.75292411]
[1704087637111,0.00509665,42333.0,42326.0,0.75292411]
[1704087637328,0.472419,42336.0,42328.0,0.04719]
[1704087637556,0.001,42330.0,42328.0,0.04719]
[1704087637973,0.2157,42335.0,42328.0,0.04719]
[1704087638184,0.472419,42336.0,42328.0,0.04719]
[1704087638384,0.005,42333.0,42328.0,0.04719]
[1704087638876,0.00479705,42332.0,42328.0,0.04719]
[1704087639322,0.0048268,42331.0,42328.0,0.04719]
[1704087639745,0.2237,42335.0,42328.0,0.04719]
[1704087639927,0.00482462,42330.0,42328.0,0.04719]
[1704087640134,0.2237,42335.0,42328.0,0.04719]
[1704087640135,0.003,42332.0,42328.0,0.04719]
[1704087640336,0.0048266,42329.0,42328.0,0.04719]
[1704087640582,0.003,42332.0,42328.0,0.04719]
[1704087640812,0.003,42332.0,42327.0,0.04719]
[1704087641071,0.00511113,42331.0,42327.0,0.04719]
[1704087641524,0.00711113,42331.0,42327.0,0.04719]
[1704087641736,0.00515168,42330.0,42327.0,0.04719]
[1704087642155,0.002,42331.0,42327.0,0.04719]
[1704087642368,0.00515168,42329.0,42327.0,0.04719]
[1704087642578,0.002,42331.0,42327.0,0.04719]
[1704087642998,0.00515168,42330.0,42327.0,0.04719]
[1704087643781,0.00515168,42330.0,42326.0,0.04719]
[1704087643999,0.00615168,42330.0,42326.0,0.04719]
[1704087644625,0.00515168,42330.0,42326.0,0.04719]
[1704087644830,0.00615168,42330.0,42327.0,0.04719]
[1704087645165,0.47863168,42330.0,42327.0,0.04719]
[1704087645631,0.63732816,42330.0,42327.0,0.04719]
[1704087645833,0.63732816,42330.0,42324.0,0.04719]
[1704087646031,0.1966,42329.0,42324.0,0.04719]
[1704087646238,0.1966,42329.0,42327.0,0.001]
[1704087646455,0.00506698,42328.0,42327.0,0.001]
[1704087647546,0.00506698,42328.0,42324.0,0.04719]
[1704087647547,0.00706698,42328.0,42324.0,0.04719]
[1704087648367,0.00906698,42328.0,42324.0,0.04719]
[1704087648774,0.00706698,42328.0,42324.0,0.04719]
[1704087648978,0.00906698,42328.0,42324.0,0.04719]
[1704087649439,0.00706698,42328.0,42324.0,0.04719]
[1704087649644,0.00906698,42328.0,42324.0,0.04719]
[1704087651774,0.00906698,42328.0,42324.0,0.75295011]
[1704087653127,0.00706698,42328.0,42324.0,0.75295011]
[1704087653256,0.00706698,42328.0,42324.0,0.75294511]
[1704087653465,0.00906698,42328.0,42324.0,0.75294511]
[1704087653865,0.00706698,42328.0,42324.0,0.75294511]
[1704087654338,0.00506698,42328.0,42324.0,0.75394511]
[1704087654556,0.00706698,42328.0,42324.0,0.75394511]
[1704087654764,0.00506698,42328.0,42324.0,0.75394511]
[1704087655166,0.00506698,42328.0,42324.0,0.75594511]
[1704087655372,0.00506698,42328.0,42324.0,0.75394511]
[1704087655792,0.00506698,42328.0,42324.0,0.75494511]
[1704087656222,0.00506698,42328.0,42324.0,0.28340711]
[1704087656416,0.00506698,42328.0,42324.0,0.75594511]
[1704087658283,0.00506698,42328.0,42325.0,0.04719]
[1704087659357,0.00506698,42328.0,42326.0,0.04719]
[1704087660428,0.00506698,42328.0,42324.0,0.04719]
[1704087660636,0.00506698,42328.0,42326.0,0.001]
[1704087661250,0.00506698,42328.0,42324.0,0.04719]
[1704087661456,0.00506698,42328.0,42326.0,0.002]
[1704087661657,0.00506698,42328.0,42322.0,0.04735]
[1704087662080,0.00706698,42328.0,42322.0,0.04735]
[1704087662481,0.00706698,42328.0,42324.0,0.001]
[1704087662696,0.00506698,42328.0,42324.0,0.001]
[1704087662928,0.00506698,42328.0,42322.0,0.04735]
[1704087663090,0.00706698,42328.0,42322.0,0.04735]
[1704087664350,0.00506698,42328.0,42322.0,0.04735]
[1704087664578,0.00706698,42328.0,42322.0,0.04735]
[1704087666382,0.00906698,42328.0,42322.0,0.04735]
[1704087666653,0.00706698,42328.0,42322.0,0.04735]
[1704087667063,0.00906698,42328.0,42322.0,0.04735]
[1704087667693,0.04956,42327.0,42322.0,0.04735]
[1704087668121,0.00503406,42326.0,42322.0,0.04735]
[1704087668531,0.20863406,42326.0,42322.0,0.04735]
[1704087668741,0.05106,42325.0,42322.0,0.04735]
[1704087668942,0.21888753,42325.0,42322.0,0.04735]
[1704087669145,0.22392096,42325.0,42322.0,0.04735]
[1704087669362,0.22392096,42325.0,42322.0,0.04935]
[1704087669580,0.22224096,42325.0,42322.0,0.04935]
[1704087669986,0.22224096,42325.0,42322.0,0.04735]
[1704087670369,0.22224096,42325.0,42322.0,0.04935]
[1704087670596,0.04662,42324.0,42322.0,0.04935]
[1704087670807,0.05160273,42324.0,42322.0,0.04935]
[1704087671367,0.00498273,42324.0,42322.0,0.04935]
[1704087671577,0.00498273,42324.0,42322.0,0.05235]
[1704087671892,0.05052273,42324.0,42322.0,0.04935]
[1704087672094,0.00498273,42324.0,42322.0,0.04735]
[1704087673174,0.001,42324.0,42322.0,0.04735]
[1704087673528,0.00503424,42323.0,42322.0,0.04735]
[1704087674971,0.00503424,42323.0,42322.0,0.04935]
[1704087675377,0.2036,42326.0,42322.0,0.05035]
[1704087675601,0.00537118,42323.0,42322.0,0.04835]
[1704087675808,0.2036,42326.0,42322.0,0.04735]
[1704087676015,0.00503316,42323.0,42322.0,0.05035]
[1704087676224,0.2036,42326.0,42322.0,0.04935]
[1704087676432,0.00536871,42323.0,42322.0,0.04935]
[1704087676642,0.2056,42326.0,42322.0,0.04735]
[1704087676926,0.00536871,42323.0,42322.0,0.04735]
[1704087677127,0.2056,42326.0,42322.0,0.519917]
[1704087677128,0.004,42326.0,42322.0,0.519917]
[1704087677542,0.002,42326.0,42322.0,0.519917]
[1704087677750,0.0055622,42325.0,42322.0,0.519917]
[1704087677952,0.0055622,42325.0,42322.0,0.522917]
[1704087678163,0.0055622,42325.0,42322.0,0.519917]
[1704087678366,0.1957,42329.0,42322.0,0.521917]
[1704087678571,0.1957,42329.0,42322.0,0.523917]
[1704087678710,0.0055622,42324.0,42322.0,0.706517]
[1704087678917,0.001,42325.0,42322.0,0.524917]
[1704087679156,0.002,42325.0,42322.0,0.526917]
[1704087679363,0.00556957,42324.0,42322.0,0.521917]
[1704087679583,0.1977,42329.0,42322.0,0.519917]
[1704087680082,0.001,42324.0,42322.0,0.521917]
[1704087681044,0.1957,42329.0,42322.0,0.524917]
[1704087681045,0.001,42325.0,42322.0,0.524917]
[1704087681255,0.1977,42329.0,42322.0,0.519917]
[1704087681467,0.00657856,42324.0,42322.0,0.525917]
[1704087681673,0.001,42324.0,42322.0,0.525917]
[1704087681908,0.1957,42329.0,42322.0,0.519917]
[1704087682107,0.002,42325.0,42322.0,0.526917]
[1704087682316,0.001,42325.0,42322.0,0.521917]
[1704087682521,0.00557856,42324.0,42322.0,0.519917]
[1704087682718,0.001,42324.0,42322.0,0.525917]
[1704087683093,0.002,42324.0,42322.0,0.527917]
[1704087683931,0.001,42324.0,42322.0,0.521917]
[1704087684136,0.001,42324.0,42322.0,0.526917]
[1704087684542,0.001,42324.0,42322.0,0.521917]
[1704087684781,0.002,42324.0,42322.0,0.527917]
[1704087685400,0.00557856,42323.0,42322.0,0.527917]
[1704087685606,0.002,42324.0,42322.0,0.527917]
[1704087685942,0.00519769,42323.0,42322.0,0.527917]
[1704087686152,0.002,42324.0,42322.0,0.527917]
[1704087686358,0.00487493,42323.0,42322.0,0.527917]
[1704087686556,0.002,42324.0,42322.0,0.527917]
[1704087686765,0.00519993,42323.0,42322.0,0.05535]
[1704087686990,0.00519993,42323.0,42322.0,0.52591]
[1704087687194,0.001,42324.0,42322.0,0.52791]
[1704087687396,0.00587493,42323.0,42322.0,0.52791]
[1704087687726,0.00587493,42323.0,42322.0,0.52191]
[1704087687880,0.001,42323.0,42322.0,0.52191]
[1704087688314,0.00757135,42323.0,42322.0,0.52991]
[1704087688541,0.00657135,42323.0,42322.0,0.52791]
[1704087688747,0.00657135,42323.0,42322.0,0.52991]
[1704087689619,0.001,42323.0,42322.0,0.52991]
[1704087690038,0.001,42323.0,42322.0,0.52791]
[1704087690255,0.002,42323.0,42322.0,0.52991]
[1704087691256,0.00757856,42323.0,42322.0,0.52991]
[1704087691497,0.002,42323.0,42322.0,0.52991]
[1704087691706,0.00758135,42323.0,42322.0,0.52991]
[1704087691897,0.002,42323.0,42322.0,0.52991]
[1704087692024,0.00757894,42323.0,42322.0,0.52991]
[1704087692251,0.002,42323.0,42322.0,0.52991]
[1704087694154,0.002,42323.0,42322.0,0.05735]
[1704087694334,0.002,42323.0,42322.0,0.52991]
[1704087700913,0.00756498,42323.0,42322.0,0.52991]
[1704087701114,0.002,42323.0,42322.0,0.52991]
[1704087701555,0.00756408,42323.0,42322.0,0.52991]
[1704087705059,0.00756408,42323.0,42322.0,0.52991]
[1704087706839,0.00756408,42323.0,42322.0,0.76312711]
[1704087707045,0.002,42323.0,42322.0,0.81984237]
[1704087707487,0.002,42323.0,42322.0,1.01984237]
[1704087707708,0.002,42323.0,42322.0,1.33662854]
[1704087709088,0.002,42323.0,42322.0,1.43462854]
[1704087709089,0.001,42323.0,42322.0,1.43462854]
[1704087709305,0.002,42323.0,42322.0,1.86592265]
[1704087709520,0.002,42323.0,42322.0,2.63820192]
[1704087709803,0.2028,42337.0,42331.0,0.04719]
[1704087710020,0.47480741,42341.0,42333.0,0.04719]
[1704087710247,0.2028,42340.0,42333.0,0.04719]
[1704087712388,0.2068,42340.0,42333.0,0.04719]
[1704087712820,0.2088,42340.0,42333.0,0.04719]
[1704087714313,0.00605682,42339.0,42333.0,0.04719]
[1704087715180,0.00605682,42339.0,42333.0,0.28040711]
[1704087715596,0.00605682,42339.0,42334.0,0.23321711]
[1704087715804,0.00605682,42339.0,42335.0,0.04719]
[1704087716017,0.00905682,42339.0,42337.0,0.04719]
[1704087716457,0.00705682,42339.0,42337.0,0.04719]
[1704087716667,0.00905682,42339.0,42337.0,0.04719]
[1704087716877,0.00805682,42339.0,42337.0,0.04719]
[1704087717368,0.00805682,42339.0,42337.0,0.04919]
[1704087717582,0.002,42339.0,42337.0,0.04919]
[1704087718011,0.2028,42340.0,42337.0,0.04919]
[1704087718438,0.0052581,42338.0,42337.0,0.05019]
[1704087718659,0.2028,42340.0,42337.0,0.05019]
[1704087718882,0.00567032,42338.0,42337.0,0.04719]
[1704087719099,0.2028,42340.0,42337.0,0.04919]
[1704087719283,0.2028,42340.0,42337.0,0.04819]